Cogmind - Beta 16 *** ADVENTURER MODE // 2025.10.31 @ 10:30:41 Player: Frisko Result: Destroyed by G-47 Trooper with Particle Gun Performance ------------- Evolutions (3) 1500 Regions Visited (4) 800 Robots Destroyed (45) 225 Value Destroyed (1424) 1424 Prototype IDs (0) 0 Alien Tech Used (0) 0 Bonus (0) 0 TOTAL SCORE: 3949 Bonus ------- None Cogmind --------- Core Integrity 0/700 Matter 176/300 Energy 100/100 System Corruption 3% Temperature Cool (9) Movement Core (2350) Ox46 Location -7/Factory Parts ------- > --- POWER (2) -------- (None) > --- PROPULSION (3) --- (None) > --- UTILITY (6) ------ Cargo Storage Unit Advanced Terrain Scan Processor > --- WEAPON (2) ------- (None) > --- INVENTORY (30) --- ECM Suite Peak State ------------ > --- POWER ------------ Improved Deuterium Engine > --- PROPULSION ------- Advanced Treads Advanced Treads Advanced Treads > --- UTILITY ---------- Heat Sink Cargo Storage Unit Advanced Terrain Scan Processor Kinecellerator Improved Medium Armor Plating > --- WEAPON ----------- Gatling Laser Gauss Rifle > --- INVENTORY -------- Improved Cooling System Compact Battery ECM Suite EM Pulse Gun Beam Cannon Mini Grenade Launcher [Rating: 37] Favorites ----------- Power Light Ion Engine Engine Light Ion Engine Propulsion Wheel Treads Advanced Treads Wheel Wheel Utility Cargo Storage Unit Device Shield Generator Storage Cargo Storage Unit Processor Advanced Terrain Scan Processor Hackware System Shield Protection Core Shielding Weapon Heavy Particle Cannon Energy Gun EM Pulse Gun Energy Cannon Heavy Particle Cannon Ballistic Gun Heavy Assault Rifle Launcher Mini Grenade Launcher Build | -11 -10 -9 -8 -7 ------- Run | Yrd Mat Mat Mat Fac Slots Evolved 6 | . . 2 2 2 Power 1 | . . 1 . . Propulsion 1 | . . . . 1 Utility 4 | . . 1 2 1 Weapon . | . . . . . Parts Attached 40 | 6 3 6 7 18 Power 3 | 1 . 1 . 1 Engine 3 | 1 . 1 . 1 Core . | . . . . . Reactor . | . . . . . Propulsion 11 | 2 . . 2 7 Treads 4 | . . . . 4 Leg . | . . . . . Wheel 7 | 2 . . 2 3 Hover . | . . . . . Flight . | . . . . . Utility 17 | 1 1 5 3 7 Device 7 | . . 1 2 4 Storage 5 | 1 1 2 . 1 Processor 2 | . . 1 . 1 Hackware 1 | . . . 1 . Protection 2 | . . 1 . 1 Artifact . | . . . . . Weapon 9 | 2 2 . 2 3 Energy Gun 3 | 1 1 . . 1 Energy Cannon 2 | . 1 . 1 . Ballistic Gun 3 | 1 . . 1 1 Ballistic Cannon . | . . . . . Launcher 1 | . . . . 1 Special Weapon . | . . . . . Impact Weapon . | . . . . . Slashing Weapon . | . . . . . Piercing Weapon . | . . . . . Special Melee Weapon . | . . . . . Unidentified Prototypes . | . . . . . Parts Lost 31 | . . . 4 27 Power 3 | . . . 1 2 Propulsion 10 | . . . 1 9 Utility 10 | . . . 2 8 Weapon 8 | . . . . 8 Highest Loss Streak 10 | . . . 3 10 To Critical Strikes . | . . . . . Average Backups 8 | 3 7 6 7 10 Power . | . 1 . . . Propulsion 3 | 2 4 3 3 2 Utility 1 | . . 1 . 3 Weapon 3 | . 1 2 3 3 Tool/Special . | . . . . . Unused Backups 5 | . 2 2 . 1 Power . | . . . . . Propulsion 4 | . 2 2 . . Utility 1 | . . . . 1 Weapon . | . . . . . Tool/Special . | . . . . . Average Slot Usage (%) 75 | . 85 89 82 63 Engine 11 | . 14 22 15 4 Treads 1 | . . . . 4 Wheel 15 | . 28 22 17 9 Device 7 | . . 2 8 11 Storage 9 | . 14 11 9 8 Processor 1 | . . . . 2 Hackware 2 | . . . 4 3 Protection 5 | . . 9 9 4 Energy Gun 4 | . 14 11 1 1 Energy Cannon 8 | . 13 11 12 4 Ballistic Gun 3 | . 1 . 4 4 Peak Build Rating 37 | 6 7 10 18 37 Average Rating 15 | 4 6 8 14 21 On Entrance 7 | . 6 6 9 18 Avg Prop Armor Cover (%) 8 | . . . . 8 Naked Turns . | . . . . . Heaviest Build 169 | 12 30 154 160 169 Greatest Support 66 | 26 26 26 26 66 Greatest Overweight (x) 48 | . 1 5 9 48 Average Overweight (x) 4 | . . 2 6 8 Largest Inventory Capacity 30 | 8 15 30 30 30 Average Capacity 25 | 6 8 23 30 30 Most Carried 18 | 7 8 11 12 18 Average Carried 8 | 3 7 6 7 10 Final Capacity 30 | 8 15 30 30 30 Final Carried 12 | 7 8 6 12 1 Class Distribution -------------------- 77% | Hauler-Mutant 22% | Mutant Dominant Class ---------------- Mutant | -10/Materials Hauler-Mutant | -9/Materials Hauler-Mutant | -8/Materials Hauler-Mutant | -7/Factory Resources | -11 -10 -9 -8 -7 ----------- Run | Yrd Mat Mat Mat Fac Matter Collected 734 | 215 68 40 249 162 Remotely . | . . . . . Salvage Created 1605 | 13 141 373 478 600 Parts 106 | 4 11 28 31 32 Haulers Intercepted . | . . . . . Recyclers Shooed . | . . . . . Parts Field Recycled . | . . . . . Retrieved Matter . | . . . . . Parts Self-Destructed . | . . . . . Prevented . | . . . . . Parts Restored . | . . . . . Kills | -11 -10 -9 -8 -7 ------- Run | Yrd Mat Mat Mat Fac Combat Hostiles Destroyed 38 | . 6 10 11 11 Guns 17 | . 5 3 3 6 Cannons 16 | . 1 6 7 2 AOE 4 | . . 1 . 3 Classes Destroyed 12 | 1 2 2 3 4 Builder 2 | . . . . 2 Tunneler 1 | 1 . . . . Recycler 1 | . . . . 1 Watcher 3 | . 1 1 1 . Swarmer 12 | . 6 3 3 . Grunt 14 | . . 6 3 5 Brawler 1 | . . . 1 . Duelist 1 | . . 1 . . Sentry 4 | . . . 3 1 Specialist 1 | . . . . 1 Hunter 3 | . . . 1 2 Programmer 2 | . . . . 2 Best Kill Streak 7 | 1 4 7 3 7 Combat Bots Only 7 | . 3 7 3 4 Max Kills in Single Turn 5 | 1 1 1 1 5 Gunslinging . | . . . . . Exploded 2 | . . 1 . 2 Melee . | . . . . . Uniques/NPCs Destroyed . | . . . . . Combat | -11 -10 -9 -8 -7 -------- Run | Yrd Mat Mat Mat Fac Hostile Shots Fired 474 | . 23 9 78 364 Missed 119 | . 3 5 18 93 Hits 355 | . 20 4 60 271 Projectile 355 | . 20 4 60 271 Critical Strikes 14 | . . . 1 13 Actively Blocked 1 | . . . 1 . Damage Taken 3707 | . 119 27 454 3107 Core 870 | . 49 4 112 705 Absorbed by Shields 169 | . . . 66 103 Redirected to Shielding 32 | . . 1 20 11 Ignored by Resistances 1136 | . 40 8 158 930 Core Remaining (%) 89 | 100 80 99 79 . Volleys Fired 103 | 3 11 14 31 44 Largest 2 | 2 2 2 2 2 Hottest 140 | 60 100 100 135 140 Shots Fired 196 | 6 22 28 61 79 Gun 104 | 6 11 14 13 60 Cannon 89 | . 11 14 48 16 Launcher 3 | . . . . 3 Special . | . . . . . Kinetic 59 | 3 . . 13 43 Thermal 106 | 3 11 14 48 30 Explosive 3 | . . . . 3 Electromagnetic 28 | . 11 14 . 3 Robot Hit Streak 28 | 5 19 28 11 27 Robot Miss Streak 3 | . . 2 3 3 Penetration Max . | . . . . . Secondary Targets 2 | . . . . 2 Max Gunslinging Chain 1 | . . . . 1 Shots Hit Robots 149 | 5 14 18 46 66 Core Hits 75 | 2 7 14 18 34 Critical Kills 2 | . . . 1 1 Critical Parts Destroyed 3 | . . . . 3 Critical Strikes 5 | . . . 1 4 Meltdown 1 | . . . 1 . Destroy 4 | . . . . 4 Melee Attacks . | . . . . . Impact . | . . . . . Slashing . | . . . . . Piercing . | . . . . . Sneak Attacks . | . . . . . Combat Hostiles . | . . . . . Follow-up Attacks . | . . . . . Damage Inflicted 3374 | 49 163 389 948 1825 Guns 1417 | 49 110 140 129 989 Cannons 1292 | . 53 138 819 282 Explosions 576 | . . 111 . 465 Melee . | . . . . . Ramming 89 | . . . . 89 Kinetic 734 | 16 . . 129 589 Thermal 1836 | 33 53 249 819 682 Explosive 465 | . . . . 465 Electromagnetic 250 | . 110 140 . . Impact . | . . . . . Slashing . | . . . . . Piercing . | . . . . . Highest Corruption 3 | . . . . 3 Average Corruption 1 | . . . . 1 Corruption Purged . | . . . . . Corruption Blocked . | . . . . . Effects 6 | . . . . 6 Matter Fused 1 | . . . . 1 Energy Discharges 1 | . . . . 1 Parts Rejected 1 | . . . . 1 Data Loss (minor) 2 | . . . . 2 Data Loss (major) 1 | . . . . 1 Overload Shots . | . . . . . Overflow Damage 7 | . . . . 7 Projectiles . | . . . . . Explosions 7 | . . . . 7 Melee . | . . . . . Knockbacks . | . . . . . Impact . | . . . . . Kinetic . | . . . . . Secondary . | . . . . . Self-Inflicted Damage 119 | . . . . 119 Shots 3 | . . . . 3 Rammed 10 | . . . . 10 Targets Rammed 10 | . . . . 10 Kicked . | . . . . . Crushed . | . . . . . Highest Temperature 479 | 20 195 366 479 103 Average Temperature 105 | 15 71 130 136 35 Received Heat Transfer 2012 | . . 6 117 1889 Effects 8 | . . 1 7 . Shutdowns 2 | . . . 2 . Energy Bleed 2 | . . . 2 . Interference 1 | . . . 1 . Matter Decay 2 | . . 1 1 . Short Circuit 1 | . . . 1 . Siege Activations . | . . . . . Martial Activations . | . . . . . Shielding Activations . | . . . . . Robots Disrupted . | . . . . . Combat Hostiles . | . . . . . Robots Corrupted . | . . . . . Combat Hostiles . | . . . . . Parts Fried . | . . . . . Impact Corruptions . | . . . . . Robots Melted 1 | . . . 1 . Combat Hostiles 1 | . . . 1 . Parts Melted 10 | . . . 6 4 Heat Transferred 3132 | 75 111 396 1369 1181 Parts Sabotaged . | . . . . . Parts Stolen . | . . . . . Parts Stripped . | . . . . . Power Chain Reactions 2 | . . 2 . . Alert | -11 -10 -9 -8 -7 ------- Run | Yrd Mat Mat Mat Fac Maximum Alert Level 1 | . . 1 . . Low Security (%) 99 | 100 100 92 100 100 Level 1 . | . . 7 . . Level 2 . | . . . . . Level 3 . | . . . . . Level 4 . | . . . . . Level 5 . | . . . . . High Security . | . . . . . Max Security . | . . . . . Peak Influence 205 | . 97 205 134 124 Initial 56 | . . 24 56 37 Average 59 | . 35 128 91 30 Influence Increases 1198 | 5 156 264 349 424 Destroy 0b10 Robot/C 760 | . 120 200 220 220 Destroy 0b10 Robot/NC 35 | 5 5 5 5 15 Destroy Leader 166 | . 22 32 72 40 Successful Hack 58 | . . 13 . 45 Disable Machine 18 | . 9 9 . . Destroy Structure 26 | . . 5 7 14 Lose Combat Pursuer 135 | . . . 45 90 Influence Decreases 1198 | 5 89 173 412 519 Entered New Map 203 | . . 43 102 58 Time Decay 725 | 5 89 130 270 231 Lost Part 270 | . . . 40 230 Squads Dispatched 8 | . . 1 3 4 Investigation 4 | . . 1 2 1 Extermination 1 | . . . . 1 Reinforcement 3 | . . . 1 2 Assault . | . . . . . Garrison . | . . . . . Intercept . | . . . . . Searches Triggered . | . . . . . Construction Impeded 1 | . . . . 1 Haulers Reinforced . | . . . . . Active Scanning Responses . | . . . . . Cargo Convoy Interrupts 1 | . . . . 1 Stealth | -11 -10 -9 -8 -7 --------- Run | Yrd Mat Mat Mat Fac Distress Signals 6 | . 1 1 2 2 Communications Jammed . | . . . . . Distress Signals . | . . . . . Times Spotted 64 | . 9 12 21 22 Peak Tracking Total 9 | . 5 4 9 6 Tactical Retreats 6 | . . . 2 4 Traps | -11 -10 -9 -8 -7 ------- Run | Yrd Mat Mat Mat Fac Traps Triggered 2 | . . . 1 1 Indirectly . | . . . . . Trap Hack Attempts . | . . . . . Triggered . | . . . . . Disarmed . | . . . . . Reprogrammed . | . . . . . Reused . | . . . . . Traps Extracted . | . . . . . Installed . | . . . . . Triggered . | . . . . . Machines | -11 -10 -9 -8 -7 ---------- Run | Yrd Mat Mat Mat Fac Machines Disabled 3 | . 2 1 . . Max in Single Turn 1 | . 1 1 . . Machines Repaired . | . . . . . Machines Dismantled . | . . . . . Machines Sabotaged . | . . . . . Overloaded Fab Kills . | . . . . . Hacking | -11 -10 -9 -8 -7 --------- Run | Yrd Mat Mat Mat Fac Machines Accessed 3 | . . 2 . 1 Terminals 3 | . . 2 . 1 Fabricators . | . . . . . Repair Stations . | . . . . . Recycling Units . | . . . . . Scanalyzers . | . . . . . Garrison Access . | . . . . . Total Hacks 11 | . . 6 . 5 Successful 6 | . . 4 . 2 Failed 5 | . . 2 . 3 Catastrophic 2 | . . 1 . 1 Database Lockouts . | . . . . . Manual . | . . . . . Terminals 11 | . . 6 . 5 Fabricators . | . . . . . Repair Stations . | . . . . . Recycling Units . | . . . . . Scanalyzers . | . . . . . Garrison Access . | . . . . . Terminal Hacks 6 | . . 4 . 2 Locate Traps 1 | . . . . 1 Dispatch Records 1 | . . 1 . . Surveillance Status 1 | . . 1 . . Transport Status 1 | . . 1 . . Recall Extermination 1 | . . . . 1 Hauler Manifests 1 | . . 1 . . Fabricator Hacks . | . . . . . Repair Station Hacks . | . . . . . Recycling Unit Hacks . | . . . . . Scanalyzer . | . . . . . Garrison Access Hacks . | . . . . . Unauthorized Hacks . | . . . . . Terminals . | . . . . . Fabricators . | . . . . . Repair Stations . | . . . . . Recycling Units . | . . . . . Scanalyzers . | . . . . . Garrison Access . | . . . . . Data Cores Recovered . | . . . . . Used . | . . . . . Hacking Detections 2 | . . 1 . 1 Full Trace Events 2 | . . 1 . 1 Feedback Events . | . . . . . Feedback Blocked . | . . . . . Robot Schematics Acquired . | . . . . . Robots Built . | . . . . . Authchips . | . . . . . Time . | . . . . . Total Robot Build Rating . | . . . . . Part Schematics Acquired . | . . . . . Parts Built . | . . . . . Authchips . | . . . . . Time . | . . . . . Total Part Build Rating . | . . . . . Part Studies Acquired . | . . . . . Parts Repaired . | . . . . . Time . | . . . . . Parts Recycled . | . . . . . Recycled Matter . | . . . . . Retrieved Matter . | . . . . . Retrieved Components . | . . . . . Parts Scanalyzed . | . . . . . Part Schematics Acquired . | . . . . . Parts Damaged . | . . . . . Bothacking | -11 -10 -9 -8 -7 ------------ Run | Yrd Mat Mat Mat Fac Used RIF Installer . | . . . . . Robots Hacked . | . . . . . Non-combat . | . . . . . Combat . | . . . . . Robot Hacks Applied . | . . . . . Relay Couplers Released . | . . . . . Fabnet Peak Effective % . | . . . . . Robots Rewired . | . . . . . Allies Hacked . | . . . . . Hacks Repelled . | . . . . . Allies | -11 -10 -9 -8 -7 -------- Run | Yrd Mat Mat Mat Fac Total Allies . | . . . . . Largest Group . | . . . . . Highest-Rated Group . | . . . . . Highest-Rated Ally . | . . . . . Total Orders . | . . . . . Ally Attacks . | . . . . . Total Damage . | . . . . . Kills . | . . . . . Allies Corrupted . | . . . . . Allies Melted . | . . . . . Intel | -11 -10 -9 -8 -7 ------- Run | Yrd Mat Mat Mat Fac Active Infowar (turns) 1 | . . 1 . . Optics 1 | . . 1 . . Robot Analysis Total . | . . . . . Derelict Logs Recovered . | . . . . . Drone Launches . | . . . . . Drone Recoveries . | . . . . . Exploration | -11 -10 -9 -8 -7 ------------- Run | Yrd Mat Mat Mat Fac Turns Passed 2050 | 82 275 268 556 869 Spaces Moved 894 | 62 217 151 240 224 Core 10 | 2 . . . 8 Treads 14 | . . . . 14 Legs . | . . . . . Wheels 870 | 60 217 151 240 202 Hover . | . . . . . Flight . | . . . . . Fastest Speed 50 | 50 90 90 165 155 Average Speed 170 | 87 90 133 183 282 Slowest Speed 2450 | 90 105 165 235 2450 Overloaded Moves . | . . . . . Propulsion Burnouts . | . . . . . Robots Hopped . | . . . . . Potential Cave-ins . | . . . . . Cave-ins Triggered . | . . . . . Exploration Rate (%) 21 | 4 47 20 25 10 Regions Visited 4 Branch Regions . Pre-discovered Areas . | . . . . . Known Exits Taken . | . . . . . Unknown Exits Taken 4 | 1 1 1 1 . Scrap Searched . | . . . . . Spaces Dug . | . . . . . Terrain Destroyed 27 | . . 4 8 15 Melee . | . . . . . Projectile 9 | . . . 8 1 AOE 18 | . . 4 . 14 Terrain Rammed . | . . . . . Walls Destroyed . | . . . . . Machines Disabled . | . . . . . Actions | -11 -10 -9 -8 -7 --------- Run | Yrd Mat Mat Mat Fac Total 1229 | 83 273 192 295 386 Wait 115 | . 37 . 4 74 Move 890 | 61 216 150 239 224 Hop . | . . . . . Pick Up 53 | 13 3 15 12 10 Fast Attach 1 | . 1 . . . Attach 39 | 6 . 7 5 21 Detach 1 | . . 1 . . Swap 8 | . 2 . 3 3 Drop 9 | . 3 5 1 . Fire 103 | 3 11 14 31 44 Melee . | . . . . . Ram 9 | . . . . 9 Kick . | . . . . . Crush 1 | . . . . 1 Escape Stasis . | . . . . . Rewire . | . . . . . Trap . | . . . . . Miscellaneous . | . . . . . Route ------- -11/Scrapyard -10/Materials (discovered 2 exits: *Mat / [*Min]) -9/Materials -8/Materials -7/Factory History --------- Turn | Location | Event 11 | -11/Scrapyard | Discovered new exit (range 15) 83 | -11/Scrapyard | Entered Materials 245 | -10/Materials | Discovered new exit (range 7) 308 | -10/Materials | Build established: Mutant 341 | -10/Materials | Discovered new exit (range 11) 358 | -10/Materials | Entered another Materials area 358 | -9/Materials | Evolved 2 slots: Power x1, Utility x1 519 | -9/Materials | Destroyed 7 combat bots 604 | -9/Materials | Discovered new exit (range 14) 626 | -9/Materials | Entered another Materials area 626 | -8/Materials | Evolved 2 slots: Utility x2 770 | -8/Materials | Lost 3 parts (1n2u) 774 | -8/Materials | Build established: Hauler-Mutant 1070 | -8/Materials | Met 7R-MNS 1175 | -8/Materials | Discovered new exit (range 5) 1182 | -8/Materials | Entered Factory 1182 | -7/Factory | Evolved 2 slots: Propulsion x1, Utility x1 1183 | -7/Factory | Caught up to 7R-MNS 1697 | -7/Factory | Lost 10 parts (3n4u3w) 1768 | -7/Factory | Cargo convoy interrupted 1824 | -7/Factory | Lost 6 parts (1p2n2u1w) 1884 | -7/Factory | Core integrity fell below 50% 1942 | -7/Factory | Lost 7 parts (2n1u4w) 2006 | -7/Factory | Core integrity fell below 20% 2051 | -7/Factory | Destroyed by G-47 Trooper with Particle Gun Last Messages --------------- 01911_ Adv. Treads destroyed. 01912_ R-06 Scavenger collects Particle Gun. 01914_ K-01 Serf collects debris. 01915_ R-06 Scavenger collects Aluminum Leg. 01919_ K-01 Serf collects debris. 01919_ M-28 Smith repairs G-47 Trooper. 01921_ M-28 Smith fits Backup Propulsion III on G-47 Trooper. 01921_ R-06 Scavenger collects Wheel. 01921_ G-47 Trooper destroyed. 01922_ K-01 Serf collects debris. 01926_ R-06 Scavenger collects Imp. Heat Sink. 01926_ K-01 Serf collects debris. 01933_ The unstable cave ceiling collapses. 01934_ K-01 Serf collects debris. 01938_ Critical hit (Burn: +37). 01941_ R-06 Scavenger collects Terrain Scan Processor. 01951_ Adv. Treads destroyed. 01977_ Heat Sink destroyed. 01997_ System corrupted: Imp. Cooling System rejected. 02020_ R-06 Scavenger collects Imp. Cooling System. Map ----- +----------------------------------------------------+ | ?????????????????????????????????????????????????? | | ?????????????????????????????????????????????????? | | ?????????????????????????????????????????????????? | | ?????????????????????????????????????????????????? | | ?????????????????????????????????????????????????? | | ?????????????????????????????????????????????????? | | ?????????????????????????????????????????????????? | | ?????????????????????????????????????????????????? | | ?????????????????? ??????????????????????????????? | | ???????????????? ?????????????????????????????? | | ??????????????# ????????????????????????????? | | ??????????????# ????????????????????????????? | | ??????????????# ????????????????????????????? | | ??????????????+ ???????????????????????????? | | ??????????????# ????????????????????????????? | | ?????????? ???# ????????????????????????????? | | ?????????? ??# #????????????????????????????? | | ?????????? ??# #????????????????????????????? | | ?????????" ??# #????????????????????????????? | | ?????????" ??# ##########???????????????????? | | ?????????" ??# ????????????????????? | | ????????? ??# #??????????????????????? | | ##+#?????#+#??# #??????????????????????? | | #?????# #??# #??????????????????????? | | #?##### #### #####g####???????????????????? | | #?# #?# @ #???????????????????? | | #?# # %= #?# #???????????????????? | | #?#%# % % #?# """ #???????????????????? | | ##### %%% #?# """ #???????????????????? | | %%% ! #?# """ #???????????????????? | | ########+# #######?# #???????????????????? | | ## % #?########???????????????????? | | ## #????????????????????????????? | | ## #????????????????????????????? | | ## #????????????????????????????? | | ## """"" """"" #????????????????????????????? | | ## """"" """"" #????????????????????????????? | | ?# """ """ #????????????????????????????? | | ?# #????????????????????????????? | | ?####################????????????????????????????? | | ?????????????????????????????????????????????????? | | ?????????????????????????????????????????????????? | | ?????????????????????????????????????????????????? | | ?????????????????????????????????????????????????? | | ?????????????????????????????????????????????????? | | ?????????????????????????????????????????????????? | | ?????????????????????????????????????????????????? | | ?????????????????????????????????????????????????? | | ?????????????????????????????????????????????????? | | ?????????????????????????????????????????????????? | +----------------------------------------------------+ Best States ------------- Heat Dissipation 71 Energy Generation 16 Energy Capacity 300 Matter Stores 300 Matter Capacity 300 Sight Range 16 Terrain Scan Density 210 Armor Coverage 225 Resistance: KI 20 Resistance: TH 20 Resistance: EX 20 Resistance: EM 20 Resistance: I 20 Resistance: S 20 Resistance: P 20 Core Shielding 20 Evasion (%) 44 Recoil Reduction 3 Kinecelleration 30 Offensive Hacking 10 Defensive Hacking 10 Item Schematics ----------------- None Robot Schematics ------------------ None Fabricated ------------ Nothing Repaired ---------- Nothing Studied --------- None Alien Tech Used ----------------- None Achievements -------------- None Challenges ------------ None Game ------ Seed SiegeImpactAutobeam Manual? 0 Play Time 00:34:11 Cumulative 17.3 hours Start 2025.10.31 @ 02:14:33 End 2025.10.31 @ 10:30:41 Sessions 2 Manual Loads 0 Difficulty Adventurer Special Mode None Game No. 26 Rogue 17 Adventurer 9 Explorer 0 Win Type - Total 0 Types 0/0/0/0/0/0/0/0/0/0 Lore% 6 Gallery% 16 Achievement% 13 Wizard Run 0 Options --------- Layout 0 ASCII 0 Keyboard 0 Movement Mouse Keybinds 0 Fullscreen 1 Font 18/SmallcapsGlow Map View 38x25 Zoom Use 99% Tactical HUD 1 Map Filters NONE Filters NONE Steam 1 RUN: 2f474c07-f7d2-4c9e-803a-65682d92729a